[Event "*** Titled Tuesday Blitz"]
[Site "Chess.com"]
[Date "2020.12.01"]
[Round "1"]
[White "ulkaf961"]
[Black "tvjosue"]
[Result "1/2-1/2"]
[WhiteElo "2300"]
[BlackElo "2582"]
[TimeControl "180+1"]
[EndTime "10:07:38 PST"]
[Termination "Game drawn by repetition"]

1. d4 {[%clk 0:02:57.5]} 1... Nf6 {[%clk 0:02:58.5]} 2. Bg5 {[%clk 0:02:53.9]}
2... Ne4 {[%clk 0:02:56]} 3. Bh4 {[%clk 0:02:44.5]} 3... c5 {[%clk 0:02:51.7]}
4. e3 {[%clk 0:02:34]} 4... Qb6 {[%clk 0:02:30.3]} 5. Nc3 {[%clk 0:01:51.3]}
5... Nxc3 {[%clk 0:02:21.1]} 6. bxc3 {[%clk 0:01:51]} 6... d5 {[%clk 0:02:21.5]}
7. Nf3 {[%clk 0:01:13.7]} 7... Nc6 {[%clk 0:02:18.7]} 8. Bd3 {[%clk 0:01:07.8]}
8... c4 {[%clk 0:02:09.5]} 9. Be2 {[%clk 0:01:07.5]} 9... Bf5 {[%clk 0:02:09.4]}
10. O-O {[%clk 0:01:01.8]} 10... e6 {[%clk 0:01:57.3]} 11. Rb1 {[%clk
0:01:01.4]} 11... Qc7 {[%clk 0:01:50.5]} 12. Bg3 {[%clk 0:01:00.5]} 12... Bd6
{[%clk 0:01:33.8]} 13. Bxd6 {[%clk 0:00:58.6]} 13... Qxd6 {[%clk 0:01:34.7]} 14.
Rxb7 {[%clk 0:00:58.4]} 14... O-O {[%clk 0:01:34]} 15. Nh4 {[%clk 0:00:42.1]}
15... Bg6 {[%clk 0:01:33.5]} 16. f3 {[%clk 0:00:38.5]} 16... Rab8 {[%clk
0:01:32.7]} 17. Rxb8 {[%clk 0:00:37.9]} 17... Rxb8 {[%clk 0:01:33.6]} 18. Nxg6
{[%clk 0:00:37.8]} 18... hxg6 {[%clk 0:01:33.3]} 19. e4 {[%clk 0:00:38.3]} 19...
Qa3 {[%clk 0:01:29.9]} 20. Qd2 {[%clk 0:00:30.9]} 20... Rb2 {[%clk 0:01:18.6]}
21. exd5 {[%clk 0:00:30.2]} 21... exd5 {[%clk 0:01:19.5]} 22. f4 {[%clk
0:00:30.6]} 22... Qxa2 {[%clk 0:01:17.9]} 23. Rc1 {[%clk 0:00:28.6]} 23... Rb1
{[%clk 0:01:09.7]} 24. Bf3 {[%clk 0:00:27.6]} 24... Rxc1+ {[%clk 0:00:59.7]} 25.
Qxc1 {[%clk 0:00:27.7]} 25... Qa5 {[%clk 0:00:59.8]} 26. Qe3 {[%clk 0:00:26.8]}
26... Kf8 {[%clk 0:00:55.5]} 27. h4 {[%clk 0:00:25]} 27... Qd8 {[%clk
0:00:52.3]} 28. h5 {[%clk 0:00:22.6]} 28... gxh5 {[%clk 0:00:51.2]} 29. Bxh5
{[%clk 0:00:22.7]} 29... a5 {[%clk 0:00:50]} 30. Qh3 {[%clk 0:00:17.6]} 30...
Qd6 {[%clk 0:00:42.8]} 31. Bf3 {[%clk 0:00:16.2]} 31... a4 {[%clk 0:00:32]} 32.
Qc8+ {[%clk 0:00:11.9]} 32... Nd8 {[%clk 0:00:27.8]} 33. Qa8 {[%clk 0:00:11.2]}
33... a3 {[%clk 0:00:17.9]} 34. Bxd5 {[%clk 0:00:11.1]} 34... Ke7 {[%clk
0:00:16.4]} 35. Bxc4 {[%clk 0:00:11.1]} 35... Qxf4 {[%clk 0:00:16.9]} 36. Qxa3+
{[%clk 0:00:10.6]} 36... Kf6 {[%clk 0:00:16.4]} 37. Qa6+ {[%clk 0:00:09.5]}
37... Kg5 {[%clk 0:00:14.8]} 38. Qb6 {[%clk 0:00:07.7]} 38... Qe3+ {[%clk
0:00:11]} 39. Kh2 {[%clk 0:00:06.8]} 39... Qf4+ {[%clk 0:00:09.1]} 40. Kg1
{[%clk 0:00:07.1]} 40... Qe3+ {[%clk 0:00:09.1]} 41. Kh2 {[%clk 0:00:07]} 41...
Qf4+ {[%clk 0:00:08.7]} 42. Kg1 {[%clk 0:00:07.1]} 1/2-1/2

[Event "*** Titled Tuesday Blitz"]
[Site "Chess.com"]
[Date "2020.12.01"]
[Round "1"]
[White "Neftegor"]
[Black "Nachsueb"]
[Result "1-0"]
[WhiteElo "2531"]
[BlackElo "2178"]
[TimeControl "180+1"]
[EndTime "10:07:39 PST"]
[Termination "Neftegor won by checkmate"]

1. Nf3 {[%clk 0:03:00.3]} 1... g6 {[%clk 0:02:59.2]} 2. e4 {[%clk 0:02:59.4]}
2... Bg7 {[%clk 0:02:59.8]} 3. d4 {[%clk 0:02:59.3]} 3... c5 {[%clk 0:02:59.5]}
4. d5 {[%clk 0:02:58.8]} 4... e6 {[%clk 0:02:58.6]} 5. Nc3 {[%clk 0:02:58.6]}
5... exd5 {[%clk 0:02:58]} 6. Nxd5 {[%clk 0:02:58.3]} 6... Ne7 {[%clk
0:02:53.6]} 7. Bg5 {[%clk 0:02:57.4]} 7... Nbc6 {[%clk 0:02:52.2]} 8. Bb5 {[%clk
0:02:57]} 8... Qa5+ {[%clk 0:02:46.8]} 9. b4 {[%clk 0:02:56.6]} 9... Nxb4 {[%clk
0:02:43.8]} 10. O-O {[%clk 0:02:30.8]} 10... Nexd5 {[%clk 0:02:39.1]} 11. exd5
{[%clk 0:02:30.6]} 11... O-O {[%clk 0:02:31.5]} 12. Be2 {[%clk 0:01:53.8]} 12...
d6 {[%clk 0:02:24.7]} 13. a3 {[%clk 0:01:39.9]} 13... Na6 {[%clk 0:02:24.3]} 14.
c4 {[%clk 0:01:38.1]} 14... Bf5 {[%clk 0:02:11.5]} 15. Bd2 {[%clk 0:01:32.1]}
15... Qc7 {[%clk 0:02:10.8]} 16. Rc1 {[%clk 0:01:32.1]} 16... Rfe8 {[%clk
0:02:10.1]} 17. Be3 {[%clk 0:01:27.5]} 17... Nb8 {[%clk 0:02:03]} 18. Qd2 {[%clk
0:01:26.9]} 18... Nd7 {[%clk 0:02:02.6]} 19. Nh4 {[%clk 0:01:25.6]} 19... Be4
{[%clk 0:01:21.7]} 20. f3 {[%clk 0:01:24.6]} 20... Bf5 {[%clk 0:01:22.2]} 21.
Nxf5 {[%clk 0:01:24.1]} 21... gxf5 {[%clk 0:01:22.7]} 22. Bf2 {[%clk 0:01:22.8]}
22... Nf6 {[%clk 0:01:22.6]} 23. Bd3 {[%clk 0:01:21.7]} 23... b5 {[%clk
0:01:11.5]} 24. Bxf5 {[%clk 0:01:20.9]} 24... bxc4 {[%clk 0:01:11]} 25. Rxc4
{[%clk 0:01:20.7]} 25... Rab8 {[%clk 0:01:01.8]} 26. Bh4 {[%clk 0:01:16]} 26...
Qb7 {[%clk 0:00:50.6]} 27. Rd1 {[%clk 0:01:04.9]} 27... Qb2 {[%clk 0:00:44.9]}
28. Rc2 {[%clk 0:00:59.8]} 28... Qe5 {[%clk 0:00:42.9]} 29. Qd3 {[%clk
0:00:50.3]} 29... Qe3+ {[%clk 0:00:39]} 30. Qxe3 {[%clk 0:00:50.2]} 30... Rxe3
{[%clk 0:00:39.9]} 31. Bg3 {[%clk 0:00:50.4]} 31... Rd8 {[%clk 0:00:38.3]} 32.
a4 {[%clk 0:00:47.6]} 32... Nh5 {[%clk 0:00:37.2]} 33. Bf2 {[%clk 0:00:45.9]}
33... Ra3 {[%clk 0:00:37.3]} 34. Rc4 {[%clk 0:00:42.7]} 34... Rb8 {[%clk
0:00:30]} 35. g3 {[%clk 0:00:40]} 35... Nf6 {[%clk 0:00:20.4]} 36. Rd2 {[%clk
0:00:31.7]} 36... Ra1+ {[%clk 0:00:18.2]} 37. Kg2 {[%clk 0:00:31.4]} 37... Rb4
{[%clk 0:00:16.8]} 38. Rdc2 {[%clk 0:00:31.1]} 38... Rbxa4 {[%clk 0:00:16.5]}
39. Rxa4 {[%clk 0:00:30.4]} 39... Rxa4 {[%clk 0:00:17.2]} 40. Rb2 {[%clk
0:00:30]} 40... Rb4 {[%clk 0:00:17]} 41. Ra2 {[%clk 0:00:30.1]} 41... c4 {[%clk
0:00:16.5]} 42. Rxa7 {[%clk 0:00:29.8]} 42... Kf8 {[%clk 0:00:12.9]} 43. Rc7
{[%clk 0:00:28.4]} 43... Nxd5 {[%clk 0:00:12.5]} 44. Rc8+ {[%clk 0:00:27.1]}
44... Ke7 {[%clk 0:00:12.1]} 45. Be4 {[%clk 0:00:27.3]} 45... Nf6 {[%clk
0:00:11.8]} 46. Bf5 {[%clk 0:00:26.9]} 46... d5 {[%clk 0:00:12]} 47. Bc5# {[%clk
0:00:25]} 1-0

[Event "*** Titled Tuesday Blitz"]
[Site "Chess.com"]
[Date "2020.12.01"]
[Round "1"]
[White "lelya96"]
[Black "Orest_Vovk"]
[Result "0-1"]
[WhiteElo "2231"]
[BlackElo "2550"]
[TimeControl "180+1"]
[EndTime "10:07:40 PST"]
[Termination "Orest_Vovk won on time"]

1. e4 {[%clk 0:02:59.8]} 1... Nc6 {[%clk 0:02:55.4]} 2. Nf3 {[%clk 0:02:58.9]}
2... d5 {[%clk 0:02:49.7]} 3. exd5 {[%clk 0:02:57]} 3... Qxd5 {[%clk 0:02:50.6]}
4. d4 {[%clk 0:02:56.8]} 4... Bg4 {[%clk 0:02:49.6]} 5. Be2 {[%clk 0:02:56.2]}
5... O-O-O {[%clk 0:02:49.9]} 6. c4 {[%clk 0:02:56.2]} 6... Qh5 {[%clk
0:02:49.4]} 7. Be3 {[%clk 0:02:54.9]} 7... e5 {[%clk 0:02:48.2]} 8. d5 {[%clk
0:02:48.5]} 8... e4 {[%clk 0:02:45]} 9. Nd4 {[%clk 0:02:39.5]} 9... Bxe2 {[%clk
0:02:44.1]} 10. Qxe2 {[%clk 0:02:37.3]} 10... Qxe2+ {[%clk 0:02:43.4]} 11. Kxe2
{[%clk 0:02:33]} 11... Nxd4+ {[%clk 0:02:40.2]} 12. Bxd4 {[%clk 0:02:32.9]}
12... f6 {[%clk 0:02:38.3]} 13. Nc3 {[%clk 0:02:29.4]} 13... Re8 {[%clk
0:02:37.2]} 14. c5 {[%clk 0:02:04.6]} 14... Nh6 {[%clk 0:02:28.4]} 15. c6 {[%clk
0:01:59.4]} 15... bxc6 {[%clk 0:02:20]} 16. dxc6 {[%clk 0:01:57.6]} 16... a6
{[%clk 0:02:20]} 17. Rac1 {[%clk 0:01:53.2]} 17... Nf5 {[%clk 0:02:18.6]} 18.
Rhd1 {[%clk 0:01:52.3]} 18... Bd6 {[%clk 0:02:04.9]} 19. h3 {[%clk 0:01:45.1]}
19... h5 {[%clk 0:02:04]} 20. a3 {[%clk 0:01:26.9]} 20... Re6 {[%clk 0:01:53.2]}
21. b4 {[%clk 0:01:25.7]} 21... Kd8 {[%clk 0:01:52.9]} 22. b5 {[%clk 0:01:21.1]}
22... axb5 {[%clk 0:01:44.8]} 23. Nxb5 {[%clk 0:01:20.7]} 23... Ke7 {[%clk
0:01:43]} 24. Rc4 {[%clk 0:01:03.9]} 24... Ra8 {[%clk 0:01:35.5]} 25. a4 {[%clk
0:01:03.5]} 25... Nxd4+ {[%clk 0:01:28.2]} 26. Rdxd4 {[%clk 0:01:00.9]} 26... f5
{[%clk 0:01:27.2]} 27. Nxd6 {[%clk 0:00:59.7]} 27... Rxd6 {[%clk 0:01:26.8]} 28.
Ke3 {[%clk 0:00:59]} 28... Ra6 {[%clk 0:01:26]} 29. Rxd6 {[%clk 0:00:54.4]}
29... Kxd6 {[%clk 0:01:25.6]} 30. Kf4 {[%clk 0:00:54]} 30... g6 {[%clk
0:01:25.3]} 31. Kg5 {[%clk 0:00:51.3]} 31... Rxc6 {[%clk 0:01:25.2]} 32. Rd4+
{[%clk 0:00:43.2]} 32... Ke5 {[%clk 0:01:25.2]} 33. Rd8 {[%clk 0:00:37]} 33...
Ra6 {[%clk 0:01:18.4]} 34. Re8+ {[%clk 0:00:21.9]} 34... Kd4 {[%clk 0:01:17.8]}
35. Rd8+ {[%clk 0:00:21.8]} 35... Kc3 {[%clk 0:01:17.8]} 36. Rc8 {[%clk
0:00:22]} 36... Kd2 {[%clk 0:01:14.1]} 37. Rxc7 {[%clk 0:00:20.3]} 37... Ke2
{[%clk 0:01:14.3]} 38. Kf4 {[%clk 0:00:18.6]} 38... Kxf2 {[%clk 0:01:13.3]} 39.
Rc2+ {[%clk 0:00:18.4]} 39... Kg1 {[%clk 0:01:05.5]} 40. Kg3 {[%clk 0:00:17.8]}
40... h4+ {[%clk 0:01:01.7]} 41. Kxh4 {[%clk 0:00:16.7]} 41... Rxa4 {[%clk
0:01:02.1]} 42. Kg3 {[%clk 0:00:17.1]} 42... Ra3+ {[%clk 0:01:00.6]} 43. Kf4
{[%clk 0:00:16.1]} 43... Kf1 {[%clk 0:00:54.9]} 44. g4 {[%clk 0:00:15.6]} 44...
fxg4 {[%clk 0:00:49.8]} 45. hxg4 {[%clk 0:00:14.9]} 45... e3 {[%clk 0:00:49.9]}
46. Rc1+ {[%clk 0:00:13.3]} 46... Kf2 {[%clk 0:00:49]} 47. g5 {[%clk 0:00:08.1]}
47... e2 {[%clk 0:00:47.3]} 48. Rc2 {[%clk 0:00:08.6]} 48... Ra5 {[%clk
0:00:37.3]} 49. Kg4 {[%clk 0:00:05.3]} 49... Ra4+ {[%clk 0:00:31.5]} 50. Kh3
{[%clk 0:00:03.3]} 50... Kf1 {[%clk 0:00:31.5]} 0-1

[Event "*** Titled Tuesday Blitz"]
[Site "Chess.com"]
[Date "2020.12.01"]
[Round "1"]
[White "Nemsko"]
[Black "Durarbayli"]
[Result "0-1"]
[WhiteElo "2382"]
[BlackElo "2757"]
[TimeControl "180+1"]
[EndTime "10:07:41 PST"]
[Termination "Durarbayli won by resignation"]

1. e4 {[%clk 0:03:00.9]} 1... c5 {[%clk 0:02:57]} 2. Nf3 {[%clk 0:03:00.2]} 2...
d6 {[%clk 0:02:57.9]} 3. d4 {[%clk 0:02:59.2]} 3... cxd4 {[%clk 0:02:58.8]} 4.
Nxd4 {[%clk 0:02:59.9]} 4... Nf6 {[%clk 0:02:58.9]} 5. Nc3 {[%clk 0:02:57.8]}
5... Nc6 {[%clk 0:02:59.1]} 6. Bg5 {[%clk 0:02:54.8]} 6... Qb6 {[%clk
0:02:59.6]} 7. Nxc6 {[%clk 0:02:49]} 7... bxc6 {[%clk 0:02:57.4]} 8. Rb1 {[%clk
0:02:46.4]} 8... Ng4 {[%clk 0:02:29.1]} 9. Bh4 {[%clk 0:02:42]} 9... h6 {[%clk
0:02:29.2]} 10. h3 {[%clk 0:02:37.9]} 10... Ne5 {[%clk 0:02:16.6]} 11. Bg3
{[%clk 0:02:34.8]} 11... Ng6 {[%clk 0:02:05.4]} 12. Bd3 {[%clk 0:02:30.1]} 12...
e5 {[%clk 0:02:05.1]} 13. O-O {[%clk 0:02:28.3]} 13... Be7 {[%clk 0:02:05.3]}
14. Kh2 {[%clk 0:02:27.2]} 14... O-O {[%clk 0:02:03.7]} 15. Qe2 {[%clk
0:02:15.1]} 15... Bg5 {[%clk 0:01:48.6]} 16. Bc4 {[%clk 0:01:45.5]} 16... Qc7
{[%clk 0:01:46.2]} 17. Rbd1 {[%clk 0:01:39.4]} 17... Kh7 {[%clk 0:01:33.5]} 18.
f3 {[%clk 0:01:29.5]} 18... f5 {[%clk 0:01:29.1]} 19. Kh1 {[%clk 0:01:17.3]}
19... fxe4 {[%clk 0:01:09.1]} 20. Nxe4 {[%clk 0:01:14.2]} 20... Be7 {[%clk
0:01:08.4]} 21. Bb3 {[%clk 0:01:00.7]} 21... a5 {[%clk 0:01:02.1]} 22. a4 {[%clk
0:01:00.1]} 22... Rb8 {[%clk 0:00:53.2]} 23. Qd2 {[%clk 0:00:53.1]} 23... d5
{[%clk 0:00:47.2]} 24. Nf2 {[%clk 0:00:50.1]} 24... Bd6 {[%clk 0:00:36.4]} 25.
Rfe1 {[%clk 0:00:27.8]} 25... Bf5 {[%clk 0:00:35.9]} 26. Nd3 {[%clk 0:00:18.1]}
26... e4 {[%clk 0:00:26.9]} 27. Bxd6 {[%clk 0:00:17.4]} 27... Qxd6 {[%clk
0:00:27.8]} 28. Nf2 {[%clk 0:00:17.4]} 28... exf3 {[%clk 0:00:25.7]} 29. gxf3
{[%clk 0:00:17]} 29... Qg3 {[%clk 0:00:21.8]} 30. Qc3 {[%clk 0:00:04.5]} 30...
Qxf2 {[%clk 0:00:20.2]} 31. Rf1 {[%clk 0:00:03.4]} 31... Qg3 {[%clk 0:00:19.4]}
32. Qd2 {[%clk 0:00:01.7]} 32... Qxh3+ {[%clk 0:00:15.6]} 33. Qh2 {[%clk
0:00:02.2]} 33... Qxh2+ {[%clk 0:00:16.2]} 34. Kxh2 {[%clk 0:00:03.1]} 34... Rb4
{[%clk 0:00:16.4]} 35. Kg3 {[%clk 0:00:03.3]} 35... Rh4 {[%clk 0:00:17.3]} 36.
Rh1 {[%clk 0:00:01.6]} 36... Rxh1 {[%clk 0:00:17.2]} 37. Rxh1 {[%clk 0:00:02.5]}
37... Re8 {[%clk 0:00:17.8]} 38. Rf1 {[%clk 0:00:02.4]} 38... Re2 {[%clk
0:00:17.6]} 39. Rf2 {[%clk 0:00:02.3]} 39... Rxf2 {[%clk 0:00:17.4]} 40. Kxf2
{[%clk 0:00:03.2]} 40... Nf4 {[%clk 0:00:18.1]} 41. Ke3 {[%clk 0:00:04.1]} 41...
g5 {[%clk 0:00:18]} 42. Kd4 {[%clk 0:00:04]} 42... Ne6+ {[%clk 0:00:17.2]} 43.
Ke5 {[%clk 0:00:04.1]} 43... Kg6 {[%clk 0:00:17.6]} 44. c3 {[%clk 0:00:03.1]}
44... h5 {[%clk 0:00:17.1]} 45. Bd1 {[%clk 0:00:03.2]} 45... h4 {[%clk
0:00:17.1]} 46. Be2 {[%clk 0:00:03.4]} 46... h3 {[%clk 0:00:17.4]} 47. Bf1
{[%clk 0:00:04.3]} 47... h2 {[%clk 0:00:17.8]} 48. Bg2 {[%clk 0:00:04.8]} 48...
Nf4 {[%clk 0:00:18.6]} 49. Bh1 {[%clk 0:00:05.1]} 49... Bh3 {[%clk 0:00:19.5]}
50. Kd6 {[%clk 0:00:04.8]} 50... Bg2 {[%clk 0:00:19.8]} 0-1

[Event "*** Titled Tuesday Blitz"]
[Site "Chess.com"]
[Date "2020.12.01"]
[Round "1"]
[White "AlexSuv"]
[Black "UmarovSabir"]
[Result "1-0"]
[WhiteElo "2567"]
[BlackElo "2259"]
[TimeControl "180+1"]
[EndTime "10:07:42 PST"]
[Termination "AlexSuv won by resignation"]

1. d4 {[%clk 0:03:00.9]} 1... g6 {[%clk 0:02:56.7]} 2. Nf3 {[%clk 0:02:59.1]}
2... Bg7 {[%clk 0:02:56]} 3. Bf4 {[%clk 0:02:59.6]} 3... d6 {[%clk 0:02:54.1]}
4. e3 {[%clk 0:03:00.1]} 4... f5 {[%clk 0:02:51.9]} 5. h3 {[%clk 0:02:59.7]}
5... Nf6 {[%clk 0:02:51.8]} 6. Be2 {[%clk 0:03:00]} 6... O-O {[%clk 0:02:51.7]}
7. O-O {[%clk 0:02:59.8]} 7... c6 {[%clk 0:02:50.9]} 8. c4 {[%clk 0:02:56.5]}
8... h6 {[%clk 0:02:45.9]} 9. Bh2 {[%clk 0:02:55.2]} 9... Qe8 {[%clk 0:02:38.7]}
10. Nc3 {[%clk 0:02:53.1]} 10... Nbd7 {[%clk 0:02:29.5]} 11. b4 {[%clk
0:02:43.8]} 11... g5 {[%clk 0:02:25.1]} 12. b5 {[%clk 0:02:40.9]} 12... Qg6
{[%clk 0:02:22.4]} 13. Qc2 {[%clk 0:02:17.8]} 13... Ne4 {[%clk 0:01:41.4]} 14.
Nxe4 {[%clk 0:01:56.1]} 14... fxe4 {[%clk 0:01:41.1]} 15. Nd2 {[%clk 0:01:56.7]}
15... Nf6 {[%clk 0:01:38.9]} 16. f3 {[%clk 0:01:48.1]} 16... d5 {[%clk
0:01:03.6]} 17. fxe4 {[%clk 0:01:35.6]} 17... dxe4 {[%clk 0:00:59.1]} 18. bxc6
{[%clk 0:01:18.4]} 18... bxc6 {[%clk 0:00:58.1]} 19. Be5 {[%clk 0:01:18.4]}
19... g4 {[%clk 0:00:51.5]} 20. hxg4 {[%clk 0:01:12.9]} 20... Bxg4 {[%clk
0:00:49.4]} 21. Nb3 {[%clk 0:00:56.2]} 21... Qh5 {[%clk 0:00:45.6]} 22. Rae1
{[%clk 0:00:25.4]} 22... Bxe2 {[%clk 0:00:39.1]} 23. Qxe2 {[%clk 0:00:26]} 23...
Ng4 {[%clk 0:00:39.4]} 24. Bg3 {[%clk 0:00:26.7]} 24... Rf6 {[%clk 0:00:30.4]}
25. Nd2 {[%clk 0:00:17.7]} 25... Raf8 {[%clk 0:00:29.3]} 26. Rxf6 {[%clk
0:00:16.4]} 26... exf6 {[%clk 0:00:25.1]} 27. Nxe4 {[%clk 0:00:16]} 27... f5
{[%clk 0:00:25.1]} 28. Nc5 {[%clk 0:00:14.8]} 28... Re8 {[%clk 0:00:25.2]} 29.
Qf3 {[%clk 0:00:14.3]} 29... Bxd4 {[%clk 0:00:23]} 30. Nd7 {[%clk 0:00:09.5]}
30... Bxe3+ {[%clk 0:00:16.7]} 31. Kf1 {[%clk 0:00:09.6]} 31... Nh2+ {[%clk
0:00:14.7]} 32. Bxh2 {[%clk 0:00:09.3]} 32... Qxh2 {[%clk 0:00:15.6]} 33. Nf6+
{[%clk 0:00:09.5]} 33... Kf7 {[%clk 0:00:15]} 34. Nxe8 {[%clk 0:00:09.4]} 34...
Qg1+ {[%clk 0:00:09]} 35. Ke2 {[%clk 0:00:09.5]} 35... Qf2+ {[%clk 0:00:09.7]}
36. Qxf2 {[%clk 0:00:09.8]} 36... Bxf2 {[%clk 0:00:10]} 37. Kxf2 {[%clk
0:00:10.5]} 37... Kg6 {[%clk 0:00:10.9]} 38. Nd6 {[%clk 0:00:10.1]} 38... Kg5
{[%clk 0:00:11.8]} 39. c5 {[%clk 0:00:10.6]} 39... Kf4 {[%clk 0:00:12.7]} 40.
Re6 {[%clk 0:00:10.9]} 40... h5 {[%clk 0:00:11.4]} 41. Rf6 {[%clk 0:00:11.2]}
41... h4 {[%clk 0:00:12.3]} 42. Rxf5+ {[%clk 0:00:11.8]} 42... Kg4 {[%clk
0:00:10.5]} 43. Rf7 {[%clk 0:00:12.2]} 43... h3 {[%clk 0:00:10.5]} 44. gxh3+
{[%clk 0:00:12.9]} 1-0

[Event "*** Titled Tuesday Blitz"]
[Site "Chess.com"]
[Date "2020.12.01"]
[Round "1"]
[White "karinachess1"]
[Black "MikeSailer"]
[Result "0-1"]
[WhiteElo "2484"]
[BlackElo "2148"]
[TimeControl "180+1"]
[EndTime "10:07:44 PST"]
[Termination "MikeSailer won by resignation"]

1. e4 {[%clk 0:03:00.2]} 1... d5 {[%clk 0:02:57.9]} 2. exd5 {[%clk 0:02:59.9]}
2... Qxd5 {[%clk 0:02:56.3]} 3. Nc3 {[%clk 0:02:59.9]} 3... Qd6 {[%clk
0:02:54.5]} 4. Nf3 {[%clk 0:02:57.5]} 4... Nf6 {[%clk 0:02:54.7]} 5. d4 {[%clk
0:02:57.5]} 5... c6 {[%clk 0:02:55.5]} 6. g3 {[%clk 0:02:57.3]} 6... Bf5 {[%clk
0:02:55.3]} 7. Bg2 {[%clk 0:02:57.1]} 7... e6 {[%clk 0:02:55.9]} 8. O-O {[%clk
0:02:54.1]} 8... Be7 {[%clk 0:02:56.2]} 9. Re1 {[%clk 0:02:51.1]} 9... O-O
{[%clk 0:02:52.9]} 10. h3 {[%clk 0:02:50.9]} 10... h6 {[%clk 0:02:53]} 11. Ne5
{[%clk 0:02:43.7]} 11... Nbd7 {[%clk 0:02:40.3]} 12. Nc4 {[%clk 0:02:35.3]}
12... Qb4 {[%clk 0:02:16.7]} 13. Bf1 {[%clk 0:02:25.5]} 13... Bd8 {[%clk
0:01:58.6]} 14. Bf4 {[%clk 0:02:18.4]} 14... Ne8 {[%clk 0:01:19]} 15. d5 {[%clk
0:01:39.1]} 15... cxd5 {[%clk 0:01:10.1]} 16. a3 {[%clk 0:01:37.3]} 16... Qc5
{[%clk 0:00:59.8]} 17. Be3 {[%clk 0:00:57.3]} 17... Qc8 {[%clk 0:00:51.6]} 18.
Nd2 {[%clk 0:00:55.1]} 18... Bf6 {[%clk 0:00:49.1]} 19. Nb3 {[%clk 0:00:37.2]}
19... Bxc3 {[%clk 0:00:48.4]} 20. bxc3 {[%clk 0:00:38.1]} 20... Qxc3 {[%clk
0:00:48.7]} 21. Rc1 {[%clk 0:00:37.1]} 21... Rc8 {[%clk 0:00:41.9]} 22. Bd4
{[%clk 0:00:37]} 22... Qc7 {[%clk 0:00:40.1]} 23. Qe2 {[%clk 0:00:35.6]} 23...
Nef6 {[%clk 0:00:35.9]} 24. c3 {[%clk 0:00:31.4]} 24... Ne4 {[%clk 0:00:33.2]}
25. Qf3 {[%clk 0:00:29.4]} 25... Ndf6 {[%clk 0:00:31]} 26. g4 {[%clk 0:00:28.8]}
26... Bh7 {[%clk 0:00:30.6]} 27. Bg2 {[%clk 0:00:23.2]} 27... Qc4 {[%clk
0:00:27.1]} 28. Rb1 {[%clk 0:00:16.2]} 28... b6 {[%clk 0:00:20.6]} 29. Bf1
{[%clk 0:00:15.4]} 29... Qc7 {[%clk 0:00:20.2]} 30. Rbc1 {[%clk 0:00:15.4]}
30... Ng5 {[%clk 0:00:20.2]} 31. Qg2 {[%clk 0:00:15]} 31... Be4 {[%clk
0:00:20.1]} 32. Rxe4 {[%clk 0:00:13.3]} 32... dxe4 {[%clk 0:00:19]} 33. h4
{[%clk 0:00:13.3]} 33... Nf3+ {[%clk 0:00:19.2]} 34. Kh1 {[%clk 0:00:13.8]}
34... Nd5 {[%clk 0:00:18.2]} 35. Be3 {[%clk 0:00:13.3]} 35... Nxe3 {[%clk
0:00:18]} 36. fxe3 {[%clk 0:00:14.2]} 36... Qe5 {[%clk 0:00:17.3]} 37. Nd4
{[%clk 0:00:14]} 37... Nxd4 {[%clk 0:00:16.4]} 38. cxd4 {[%clk 0:00:14.9]} 38...
Qf6 {[%clk 0:00:13]} 39. Re1 {[%clk 0:00:15]} 39... Rc3 {[%clk 0:00:12.5]} 40.
g5 {[%clk 0:00:14.5]} 40... hxg5 {[%clk 0:00:12.5]} 41. hxg5 {[%clk 0:00:15.4]}
41... Qg6 {[%clk 0:00:13.2]} 42. Bb5 {[%clk 0:00:14.2]} 42... Rfc8 {[%clk
0:00:13.3]} 43. Re2 {[%clk 0:00:13.2]} 43... Rc1+ {[%clk 0:00:13.5]} 44. Kh2
{[%clk 0:00:13.8]} 44... Qh5+ {[%clk 0:00:13.7]} 45. Qh3 {[%clk 0:00:13.2]}
45... Rh1+ {[%clk 0:00:13.7]} 46. Kxh1 {[%clk 0:00:12.6]} 46... Qxh3+ {[%clk
0:00:14.1]} 0-1

[Event "*** Titled Tuesday Blitz"]
[Site "Chess.com"]
[Date "2020.12.01"]
[Round "1"]
[White "2346PL"]
[Black "penguingm1"]
[Result "0-1"]
[WhiteElo "2454"]
[BlackElo "2995"]
[TimeControl "180+1"]
[EndTime "10:07:46 PST"]
[Termination "penguingm1 won by resignation"]

1. d4 {[%clk 0:02:59.6]} 1... d5 {[%clk 0:02:51.4]} 2. Nc3 {[%clk 0:02:58.3]}
2... Nf6 {[%clk 0:02:47.5]} 3. Bf4 {[%clk 0:02:58]} 3... e6 {[%clk 0:02:47.4]}
4. e3 {[%clk 0:02:57.6]} 4... Bb4 {[%clk 0:02:47.1]} 5. Bd3 {[%clk 0:02:57.1]}
5... c5 {[%clk 0:02:46.9]} 6. dxc5 {[%clk 0:02:57.3]} 6... Bxc5 {[%clk
0:02:46.4]} 7. Nf3 {[%clk 0:02:50.5]} 7... O-O {[%clk 0:02:45.9]} 8. O-O {[%clk
0:02:49.6]} 8... Nc6 {[%clk 0:02:43.9]} 9. e4 {[%clk 0:02:49.4]} 9... d4 {[%clk
0:02:34.9]} 10. Ne2 {[%clk 0:02:47.3]} 10... Qb6 {[%clk 0:02:29.6]} 11. Ng3
{[%clk 0:02:27.4]} 11... Be7 {[%clk 0:01:59.3]} 12. e5 {[%clk 0:02:12.4]} 12...
Nd5 {[%clk 0:01:55.1]} 13. Bg5 {[%clk 0:02:12.7]} 13... h6 {[%clk 0:01:46.8]}
14. Bxe7 {[%clk 0:02:06.5]} 14... Ndxe7 {[%clk 0:01:47.7]} 15. Ne4 {[%clk
0:02:03.8]} 15... Ng6 {[%clk 0:01:41.2]} 16. Re1 {[%clk 0:01:35.8]} 16... Qc7
{[%clk 0:01:20.8]} 17. Nd6 {[%clk 0:01:08.3]} 17... Ngxe5 {[%clk 0:01:15.5]} 18.
Nxe5 {[%clk 0:01:07.5]} 18... Nxe5 {[%clk 0:01:10.2]} 19. Rxe5 {[%clk
0:01:03.3]} 19... Qxd6 {[%clk 0:01:09.4]} 20. Rh5 {[%clk 0:00:57.7]} 20... Re8
{[%clk 0:01:05.6]} 21. Qg4 {[%clk 0:00:51]} 21... e5 {[%clk 0:01:01.8]} 22. Qe4
{[%clk 0:00:51]} 22... f5 {[%clk 0:01:00.9]} 23. Rxf5 {[%clk 0:00:51]} 23...
Bxf5 {[%clk 0:01:00.5]} 24. Qxf5 {[%clk 0:00:51.3]} 24... Rac8 {[%clk
0:00:52.1]} 25. Qh7+ {[%clk 0:00:47.4]} 25... Kf7 {[%clk 0:00:49]} 26. Re1
{[%clk 0:00:47.1]} 26... Rc7 {[%clk 0:00:34.3]} 27. h4 {[%clk 0:00:34.7]} 27...
Qf6 {[%clk 0:00:30.3]} 28. h5 {[%clk 0:00:33.6]} 28... Ke7 {[%clk 0:00:30.1]}
29. Qe4 {[%clk 0:00:28.6]} 29... Kd8 {[%clk 0:00:27.6]} 30. Bb5 {[%clk 0:00:28]}
30... Re6 {[%clk 0:00:24.4]} 31. Bc4 {[%clk 0:00:27.4]} 31... Rd6 {[%clk
0:00:22.1]} 32. b3 {[%clk 0:00:24.2]} 32... a6 {[%clk 0:00:20.3]} 33. Qh7 {[%clk
0:00:23.8]} 33... Re7 {[%clk 0:00:19.9]} 34. f3 {[%clk 0:00:19.7]} 34... Kc7
{[%clk 0:00:19.8]} 35. a4 {[%clk 0:00:17.9]} 35... Qg5 {[%clk 0:00:19.2]} 36.
Qg8 {[%clk 0:00:14]} 36... Qxh5 {[%clk 0:00:16.2]} 37. Qa8 {[%clk 0:00:12.7]}
37... Qg6 {[%clk 0:00:13.6]} 38. Re4 {[%clk 0:00:12.2]} 38... Qe8 {[%clk
0:00:11.8]} 39. Qa7 {[%clk 0:00:05.7]} 39... Qc6 {[%clk 0:00:11.6]} 40. a5
{[%clk 0:00:04.7]} 40... Rd8 {[%clk 0:00:11.4]} 41. Bd3 {[%clk 0:00:03.6]} 41...
Ree8 {[%clk 0:00:11.2]} 42. b4 {[%clk 0:00:02.2]} 42... Ra8 {[%clk 0:00:11.2]}
43. Qb6+ {[%clk 0:00:01.1]} 43... Qxb6 {[%clk 0:00:11.3]} 44. axb6+ {[%clk
0:00:02]} 44... Kxb6 {[%clk 0:00:12.2]} 45. Rf4 {[%clk 0:00:02.9]} 45... exf4
{[%clk 0:00:12]} 0-1